[Event "Titled Tuesday Blitz March 08 Early 2022"]
[White "Kamsky, Gata"]
[Black "Taboas Rodriguez, Daniel"]
[WhiteFideId "2000024"]
[BlackFideId "2208466"]
[WhiteElo "2645"]
[BlackElo "2429"]
[Result "1-0"]
[Round "04"]
[TimeControl "180+1"]
[Date "2022.03.08"]
[WhiteClock "0:01:00"]
[BlackClock "0:01:57"]

1. e4 {[%clk 0:03:00]}  e6 {[%clk 0:02:59]} 2. Qe2 {[%clk 0:02:59]}  d5 {[%clk 0:03:00]} 3. exd5 {[%clk 0:02:59]}  Nf6 {[%clk 0:03:01]} 4. Nf3 {[%clk 0:02:53]}  Nxd5 {[%clk 0:02:58]} 5. g3 {[%clk 0:02:51]}  Be7 {[%clk 0:02:57]} 6. Bg2 {[%clk 0:02:51]}  O-O {[%clk 0:02:58]} 7. d4 {[%clk 0:02:51]}  c5 {[%clk 0:02:58]} 8. O-O {[%clk 0:02:50]}  Nc6 {[%clk 0:02:58]} 9. dxc5 {[%clk 0:02:47]}  Bxc5 {[%clk 0:02:59]} 10. Rd1 {[%clk 0:02:43]}  Qe7 {[%clk 0:02:56]} 11. c4 {[%clk 0:02:43]}  Nf6 {[%clk 0:02:51]} 12. Nc3 {[%clk 0:02:41]}  Rd8 {[%clk 0:02:43]} 13. Bf4 {[%clk 0:02:25]}  Bd7 {[%clk 0:02:35]} 14. a3 {[%clk 0:02:24]}  Be8 {[%clk 0:02:28]} 15. b4 {[%clk 0:02:20]}  Nd4 {[%clk 0:02:28]} 16. Nxd4 {[%clk 0:02:13]}  Bxd4 {[%clk 0:02:29]} 17. Be5 {[%clk 0:01:54]}  Bxe5 {[%clk 0:02:24]} 18. Qxe5 {[%clk 0:01:53]}  Rac8 {[%clk 0:02:25]} 19. c5 {[%clk 0:01:41]}  Bc6 {[%clk 0:02:25]} 20. Bxc6 {[%clk 0:01:26]}  Rxc6 {[%clk 0:02:24]} 21. Rxd8+ {[%clk 0:01:25]}  Qxd8 {[%clk 0:02:25]} 22. Rd1 {[%clk 0:01:25]}  Qf8 {[%clk 0:02:10]} 23. Nb5 {[%clk 0:01:23]}  a5 {[%clk 0:02:05]} 24. Na7 {[%clk 0:01:00]}  Ra6 {[%clk 0:01:57]} 25. Qc7 {[%clk 0:01:00]} 1-0


[Site "https://www.chess.com"]

[Event "Titled Tuesday Blitz March 08 Early 2022"]
[White "Kett, Tim"]
[Black "Lashkin, Jegor"]
[WhiteFideId "1801210"]
[BlackFideId "13907808"]
[WhiteElo "2098"]
[BlackElo "2344"]
[Result "1/2-1/2"]
[Round "04"]
[TimeControl "180+1"]
[Date "2022.03.09"]
[WhiteClock "0:00:06"]
[BlackClock "0:00:04"]

1. e4 {[%clk 0:02:14]}  c5 {[%clk 0:02:59]} 2. Nf3 {[%clk 0:02:13]}  d6 {[%clk 0:02:59]} 3. d4 {[%clk 0:02:14]}  cxd4 {[%clk 0:03:00]} 4. Nxd4 {[%clk 0:02:14]}  Nf6 {[%clk 0:03:01]} 5. Nc3 {[%clk 0:02:14]}  a6 {[%clk 0:03:01]} 6. Bc4 {[%clk 0:02:14]}  e6 {[%clk 0:03:01]} 7. O-O {[%clk 0:02:14]}  b5 {[%clk 0:03:01]} 8. Bb3 {[%clk 0:02:14]}  Be7 {[%clk 0:03:02]} 9. f4 {[%clk 0:02:14]}  O-O {[%clk 0:02:53]} 10. e5 {[%clk 0:02:14]}  dxe5 {[%clk 0:02:50]} 11. fxe5 {[%clk 0:02:14]}  Nfd7 {[%clk 0:02:50]} 12. Be3 {[%clk 0:02:15]}  Nc5 {[%clk 0:02:47]} 13. Qh5 {[%clk 0:02:13]}  Bb7 {[%clk 0:02:26]} 14. Rad1 {[%clk 0:02:12]}  Qc7 {[%clk 0:02:14]} 15. Rxf7 {[%clk 0:01:57]}  Rxf7 {[%clk 0:01:33]} 16. Nxe6 {[%clk 0:01:55]}  Qc6 {[%clk 0:01:29]} 17. Bd5 {[%clk 0:01:51]}  Qe8 {[%clk 0:01:09]} 18. Nc7 {[%clk 0:01:32]}  Qf8 {[%clk 0:00:27]} 19. Bxf7+ {[%clk 0:00:58]}  Qxf7 {[%clk 0:00:27]} 20. Qxf7+ {[%clk 0:00:47]}  Kxf7 {[%clk 0:00:27]} 21. e6+ {[%clk 0:00:35]}  Nxe6 {[%clk 0:00:24]} 22. Rf1+ {[%clk 0:00:34]}  Bf6 {[%clk 0:00:24]} 23. Nxa8 {[%clk 0:00:32]}  Bxa8 {[%clk 0:00:25]} 24. Ne2 {[%clk 0:00:26]}  Nc6 {[%clk 0:00:20]} 25. Nf4 {[%clk 0:00:23]}  Nxf4 {[%clk 0:00:19]} 26. Bxf4 {[%clk 0:00:22]}  Ne7 {[%clk 0:00:18]} 27. Be5 {[%clk 0:00:21]}  Be4 {[%clk 0:00:14]} 28. Bxf6 {[%clk 0:00:21]}  gxf6 {[%clk 0:00:15]} 29. c3 {[%clk 0:00:20]}  Ke6 {[%clk 0:00:15]} 30. Rf4 {[%clk 0:00:19]}  Bg6 {[%clk 0:00:14]} 31. a4 {[%clk 0:00:19]}  Nd5 {[%clk 0:00:13]} 32. Rh4 {[%clk 0:00:17]}  Bc2 {[%clk 0:00:09]} 33. axb5 {[%clk 0:00:17]}  axb5 {[%clk 0:00:10]} 34. c4 {[%clk 0:00:16]}  bxc4 {[%clk 0:00:08]} 35. Rxc4 {[%clk 0:00:16]}  Bg6 {[%clk 0:00:09]} 36. b4 {[%clk 0:00:15]}  Bd3 {[%clk 0:00:08]} 37. Rc6+ {[%clk 0:00:14]}  Kd7 {[%clk 0:00:07]} 38. Rc1 {[%clk 0:00:11]}  Nxb4 {[%clk 0:00:06]} 39. g4 {[%clk 0:00:11]}  Kd6 {[%clk 0:00:06]} 40. Kf2 {[%clk 0:00:11]}  Nd5 {[%clk 0:00:06]} 41. Kg3 {[%clk 0:00:10]}  Bg6 {[%clk 0:00:05]} 42. h4 {[%clk 0:00:10]}  h5 {[%clk 0:00:05]} 43. gxh5 {[%clk 0:00:10]}  Bxh5 {[%clk 0:00:06]} 44. Rf1 {[%clk 0:00:09]}  Ke6 {[%clk 0:00:05]} 45. Ra1 {[%clk 0:00:08]}  f5 {[%clk 0:00:05]} 46. Ra6+ {[%clk 0:00:06]}  Ke5 {[%clk 0:00:05]} 47. Ra5 {[%clk 0:00:07]}  f4+ {[%clk 0:00:05]} 48. Kf2 {[%clk 0:00:07]}  Ke4 {[%clk 0:00:05]} 49. Ra4+ {[%clk 0:00:07]}  Ke5 {[%clk 0:00:04]} 50. Ra5 {[%clk 0:00:07]}  Bg4 {[%clk 0:00:04]} 51. Ra4 {[%clk 0:00:07]}  Be6 {[%clk 0:00:04]} 52. Ra5 {[%clk 0:00:07]}  Kf6 {[%clk 0:00:04]} 53. Ra4 {[%clk 0:00:06]}  Kf5 {[%clk 0:00:04]} 54. Kf3 {[%clk 0:00:06]}  Ke5 {[%clk 0:00:04]} 55. Ra5 {[%clk 0:00:06]}  Kf5 {[%clk 0:00:04]} 56. h5 {[%clk 0:00:05]}  Kg5 {[%clk 0:00:05]} 57. h6 {[%clk 0:00:05]}  Kxh6 {[%clk 0:00:04]} 58. Rxd5 {[%clk 0:00:05]}  Bxd5+ {[%clk 0:00:04]} 59. Kxf4 {[%clk 0:00:06]} 1/2-1/2


[Site "https://www.chess.com"]

[Event "Titled Tuesday Blitz March 08 Early 2022"]
[White "Kim, Sergey"]
[Black "Rychagov, Andrey"]
[WhiteFideId "13700570"]
[BlackFideId "4119932"]
[WhiteElo "2558"]
[BlackElo "2500"]
[Result "0-1"]
[Round "04"]
[TimeControl "180+1"]
[Date "2022.03.09"]
[WhiteClock "0:00:24"]
[BlackClock "0:01:28"]

1. d4 {[%clk 0:02:55]}  f5 {[%clk 0:02:58]} 2. c4 {[%clk 0:02:54]}  Nf6 {[%clk 0:02:58]} 3. g3 {[%clk 0:02:55]}  g6 {[%clk 0:02:58]} 4. Bg2 {[%clk 0:02:56]}  Bg7 {[%clk 0:02:58]} 5. Nf3 {[%clk 0:02:56]}  O-O {[%clk 0:02:58]} 6. O-O {[%clk 0:02:57]}  d6 {[%clk 0:02:58]} 7. Nc3 {[%clk 0:02:57]}  Qe8 {[%clk 0:02:59]} 8. d5 {[%clk 0:02:57]}  a5 {[%clk 0:02:58]} 9. Nb5 {[%clk 0:02:55]}  Na6 {[%clk 0:02:55]} 10. Nbd4 {[%clk 0:02:55]}  Bd7 {[%clk 0:02:53]} 11. Ng5 {[%clk 0:02:54]}  Nc5 {[%clk 0:02:53]} 12. b3 {[%clk 0:02:49]}  h6 {[%clk 0:02:52]} 13. Ngf3 {[%clk 0:02:48]}  g5 {[%clk 0:02:44]} 14. Bb2 {[%clk 0:02:47]}  Qh5 {[%clk 0:02:42]} 15. e3 {[%clk 0:02:31]}  f4 {[%clk 0:02:41]} 16. exf4 {[%clk 0:02:28]}  gxf4 {[%clk 0:02:40]} 17. Qc2 {[%clk 0:02:14]}  Bh3 {[%clk 0:02:27]} 18. Rae1 {[%clk 0:02:11]}  Rae8 {[%clk 0:02:26]} 19. Ne6 {[%clk 0:02:03]}  Nxe6 {[%clk 0:02:15]} 20. dxe6 {[%clk 0:02:03]}  Ng4 {[%clk 0:02:05]} 21. Bxg7 {[%clk 0:01:58]}  Kxg7 {[%clk 0:02:05]} 22. Re4 {[%clk 0:01:30]}  Rf6 {[%clk 0:01:58]} 23. Bxh3 {[%clk 0:01:13]}  Qxh3 {[%clk 0:01:56]} 24. Qc3 {[%clk 0:01:11]}  Kg8 {[%clk 0:01:48]} 25. Qd4 {[%clk 0:00:54]}  Ref8 {[%clk 0:01:36]} 26. Rfe1 {[%clk 0:00:32]}  c5 {[%clk 0:01:31]} 27. Qd5 {[%clk 0:00:24]}  fxg3 {[%clk 0:01:28]} 0-1


[Site "https://www.chess.com"]

[Event "Titled Tuesday Blitz March 08 Early 2022"]
[White "Kim, Yoon-Young"]
[Black "Suarez Uriel, Adrian"]
[WhiteFideId "30908779"]
[BlackFideId "22230874"]
[WhiteElo "2109"]
[BlackElo "2316"]
[Result "1-0"]
[Round "04"]
[TimeControl "180+1"]
[Date "2022.03.09"]
[WhiteClock "0:00:28"]
[BlackClock "0:00:28"]

1. Nf3 {[%clk 0:03:00]}  Nf6 {[%clk 0:02:59]} 2. d4 {[%clk 0:03:01]}  g6 {[%clk 0:02:59]} 3. c4 {[%clk 0:03:02]}  Bg7 {[%clk 0:02:59]} 4. Nc3 {[%clk 0:03:03]}  b6 {[%clk 0:02:59]} 5. Bg5 {[%clk 0:03:04]}  Bb7 {[%clk 0:02:59]} 6. e3 {[%clk 0:03:04]}  O-O {[%clk 0:02:59]} 7. Be2 {[%clk 0:03:05]}  c5 {[%clk 0:02:58]} 8. d5 {[%clk 0:03:04]}  d6 {[%clk 0:02:57]} 9. O-O {[%clk 0:03:04]}  Nbd7 {[%clk 0:02:57]} 10. Nd2 {[%clk 0:03:02]}  a6 {[%clk 0:02:56]} 11. a4 {[%clk 0:03:01]}  e5 {[%clk 0:02:51]} 12. a5 {[%clk 0:02:54]}  h6 {[%clk 0:02:46]} 13. Bh4 {[%clk 0:02:53]}  bxa5 {[%clk 0:02:33]} 14. Nb3 {[%clk 0:02:52]}  Rb8 {[%clk 0:02:15]} 15. Nxa5 {[%clk 0:02:51]}  Ba8 {[%clk 0:02:16]} 16. Nc6 {[%clk 0:02:35]}  Bxc6 {[%clk 0:02:11]} 17. dxc6 {[%clk 0:02:36]}  Nb6 {[%clk 0:02:09]} 18. Rxa6 {[%clk 0:02:37]}  Qc8 {[%clk 0:02:10]} 19. Rxb6 {[%clk 0:02:15]}  Rxb6 {[%clk 0:02:05]} 20. Bxf6 {[%clk 0:02:16]}  Bxf6 {[%clk 0:02:06]} 21. Nd5 {[%clk 0:02:16]}  Bd8 {[%clk 0:02:06]} 22. c7 {[%clk 0:02:03]}  Rxb2 {[%clk 0:02:03]} 23. cxd8=Q {[%clk 0:01:53]}  Qxd8 {[%clk 0:02:04]} 24. Bf3 {[%clk 0:01:44]}  f5 {[%clk 0:01:57]} 25. e4 {[%clk 0:01:32]}  Qh4 {[%clk 0:01:46]} 26. Nc3 {[%clk 0:01:30]}  Qf6 {[%clk 0:01:16]} 27. Qc1 {[%clk 0:01:21]}  Rb3 {[%clk 0:01:14]} 28. Bd1 {[%clk 0:01:17]}  Rb4 {[%clk 0:01:12]} 29. Nd5 {[%clk 0:01:16]}  Qh4 {[%clk 0:01:06]} 30. Nxb4 {[%clk 0:01:15]}  cxb4 {[%clk 0:01:07]} 31. exf5 {[%clk 0:01:11]}  gxf5 {[%clk 0:00:59]} 32. Qd2 {[%clk 0:01:01]}  Qxc4 {[%clk 0:00:50]} 33. Qxd6 {[%clk 0:00:52]}  Qc3 {[%clk 0:00:41]} 34. Qg6+ {[%clk 0:00:51]}  Kh8 {[%clk 0:00:40]} 35. Qxh6+ {[%clk 0:00:51]}  Kg8 {[%clk 0:00:41]} 36. Qe6+ {[%clk 0:00:46]}  Kg7 {[%clk 0:00:40]} 37. Bb3 {[%clk 0:00:36]}  Rf6 {[%clk 0:00:39]} 38. Qe7+ {[%clk 0:00:31]}  Kg6 {[%clk 0:00:38]} 39. Bg8 {[%clk 0:00:29]}  b3 {[%clk 0:00:30]} 40. Bh7+ {[%clk 0:00:29]}  Kg5 {[%clk 0:00:27]} 41. h4+ {[%clk 0:00:29]}  Kf4 {[%clk 0:00:27]} 42. Qxf6 {[%clk 0:00:27]}  Qd3 {[%clk 0:00:28]} 43. Qg5+ {[%clk 0:00:27]}  Ke4 {[%clk 0:00:28]} 44. Qxf5+ {[%clk 0:00:28]} 1-0


[Site "https://www.chess.com"]

[Event "Titled Tuesday Blitz March 08 Early 2022"]
[White "Lauridsen, Jesper Morch"]
[Black "Kuzmin, Roman"]
[WhiteFideId "1401890"]
[BlackFideId "44134932"]
[WhiteElo "2265"]
[BlackElo "1978"]
[Result "0-1"]
[Round "04"]
[TimeControl "180+1"]
[Date "2022.03.09"]
[WhiteClock "0:00:01"]
[BlackClock "0:00:17"]

1. e4 {[%clk 0:02:56]}  c5 {[%clk 0:02:59]} 2. Nf3 {[%clk 0:02:54]}  d6 {[%clk 0:03:00]} 3. d4 {[%clk 0:02:53]}  cxd4 {[%clk 0:03:01]} 4. Nxd4 {[%clk 0:02:54]}  Nf6 {[%clk 0:03:01]} 5. Nc3 {[%clk 0:02:53]}  a6 {[%clk 0:03:02]} 6. Bc4 {[%clk 0:02:53]}  e6 {[%clk 0:03:02]} 7. a3 {[%clk 0:02:54]}  b5 {[%clk 0:03:02]} 8. Ba2 {[%clk 0:02:53]}  Nbd7 {[%clk 0:03:03]} 9. O-O {[%clk 0:02:52]}  Nc5 {[%clk 0:03:03]} 10. Re1 {[%clk 0:02:49]}  Bb7 {[%clk 0:03:03]} 11. Bg5 {[%clk 0:02:43]}  Be7 {[%clk 0:03:03]} 12. Qf3 {[%clk 0:02:14]}  h6 {[%clk 0:02:37]} 13. Bxf6 {[%clk 0:02:06]}  Bxf6 {[%clk 0:02:34]} 14. Rad1 {[%clk 0:02:06]}  Qb6 {[%clk 0:02:19]} 15. b4 {[%clk 0:01:56]}  Nd7 {[%clk 0:02:17]} 16. Bxe6 {[%clk 0:01:41]}  fxe6 {[%clk 0:01:47]} 17. Qh5+ {[%clk 0:01:40]}  Ke7 {[%clk 0:01:42]} 18. e5 {[%clk 0:00:50]}  dxe5 {[%clk 0:01:32]} 19. Nb3 {[%clk 0:00:28]}  Rhd8 {[%clk 0:01:19]} 20. Na5 {[%clk 0:00:27]}  Nf8 {[%clk 0:01:06]} 21. Nxb7 {[%clk 0:00:19]}  Qxb7 {[%clk 0:01:05]} 22. Ne4 {[%clk 0:00:17]}  Rxd1 {[%clk 0:01:01]} 23. Qxd1 {[%clk 0:00:16]}  Rd8 {[%clk 0:01:01]} 24. Qf3 {[%clk 0:00:16]}  Qd5 {[%clk 0:00:51]} 25. h3 {[%clk 0:00:14]}  Ng6 {[%clk 0:00:48]} 26. Qh5 {[%clk 0:00:12]}  Nf4 {[%clk 0:00:47]} 27. Qg4 {[%clk 0:00:10]}  h5 {[%clk 0:00:42]} 28. Qf3 {[%clk 0:00:08]}  Qc6 {[%clk 0:00:32]} 29. Qe3 {[%clk 0:00:07]}  Rd4 {[%clk 0:00:30]} 30. f3 {[%clk 0:00:05]}  Qxc2 {[%clk 0:00:23]} 31. Nf2 {[%clk 0:00:03]}  Qd2 {[%clk 0:00:19]} 32. Qb3 {[%clk 0:00:02]}  Qxe1+ {[%clk 0:00:17]} 33. Kh2 {[%clk 0:00:01]}  Qxf2 {[%clk 0:00:17]} 0-1


[Site "https://www.chess.com"]

[Event "Titled Tuesday Blitz March 08 Early 2022"]
[White "Le, Tuan Minh"]
[Black "Molina, Roberto Junio Brito"]
[WhiteFideId "12401153"]
[BlackFideId "2109450"]
[WhiteElo "2450"]
[BlackElo "2432"]
[Result "1-0"]
[Round "04"]
[TimeControl "180+1"]
[Date "2022.03.08"]
[WhiteClock "0:01:45"]
[BlackClock "0:00:55"]

1. d4 {[%clk 0:03:00]}  d5 {[%clk 0:03:00]} 2. Nf3 {[%clk 0:03:01]}  Nf6 {[%clk 0:02:59]} 3. Bf4 {[%clk 0:03:01]}  c5 {[%clk 0:02:59]} 4. c3 {[%clk 0:03:02]}  e6 {[%clk 0:02:55]} 5. e3 {[%clk 0:03:02]}  Bd6 {[%clk 0:02:55]} 6. Nbd2 {[%clk 0:03:02]}  Bxf4 {[%clk 0:02:54]} 7. exf4 {[%clk 0:03:03]}  Qc7 {[%clk 0:02:53]} 8. g3 {[%clk 0:03:02]}  O-O {[%clk 0:02:52]} 9. Bd3 {[%clk 0:03:02]}  b6 {[%clk 0:02:52]} 10. Qe2 {[%clk 0:03:03]}  a5 {[%clk 0:02:52]} 11. O-O {[%clk 0:03:04]}  Ba6 {[%clk 0:02:51]} 12. Bxa6 {[%clk 0:03:04]}  Nxa6 {[%clk 0:02:51]} 13. Rfe1 {[%clk 0:03:05]}  Nb8 {[%clk 0:02:47]} 14. Rad1 {[%clk 0:03:05]}  Nc6 {[%clk 0:02:46]} 15. Nf1 {[%clk 0:03:06]}  Rab8 {[%clk 0:02:44]} 16. Ne3 {[%clk 0:03:07]}  g6 {[%clk 0:02:43]} 17. h4 {[%clk 0:03:02]}  Ne4 {[%clk 0:02:37]} 18. c4 {[%clk 0:02:56]}  cxd4 {[%clk 0:02:31]} 19. Nxd4 {[%clk 0:02:55]}  Nxd4 {[%clk 0:02:32]} 20. Rxd4 {[%clk 0:02:55]}  Nf6 {[%clk 0:02:32]} 21. cxd5 {[%clk 0:02:54]}  exd5 {[%clk 0:02:23]} 22. Red1 {[%clk 0:02:54]}  Rfe8 {[%clk 0:02:22]} 23. Qf3 {[%clk 0:02:52]}  Rbd8 {[%clk 0:02:09]} 24. f5 {[%clk 0:02:52]}  Qe5 {[%clk 0:02:08]} 25. b3 {[%clk 0:02:45]}  Rd7 {[%clk 0:02:05]} 26. Nxd5 {[%clk 0:02:22]}  Nxd5 {[%clk 0:01:59]} 27. Rxd5 {[%clk 0:02:23]}  Rxd5 {[%clk 0:01:56]} 28. Qxd5 {[%clk 0:02:23]}  Qxf5 {[%clk 0:01:46]} 29. Qxf5 {[%clk 0:02:21]}  gxf5 {[%clk 0:01:47]} 30. Rd5 {[%clk 0:02:21]}  f4 {[%clk 0:01:42]} 31. gxf4 {[%clk 0:02:21]}  Re2 {[%clk 0:01:40]} 32. a4 {[%clk 0:02:20]}  Re4 {[%clk 0:01:39]} 33. Rb5 {[%clk 0:02:20]}  Rxf4 {[%clk 0:01:21]} 34. Rxb6 {[%clk 0:02:21]}  Rxh4 {[%clk 0:01:21]} 35. Rb5 {[%clk 0:02:21]}  Rh3 {[%clk 0:01:19]} 36. Kf1 {[%clk 0:02:17]}  Kg7 {[%clk 0:01:16]} 37. Ke2 {[%clk 0:02:17]}  Kg6 {[%clk 0:01:15]} 38. f3 {[%clk 0:01:46]}  Rh2+ {[%clk 0:01:15]} 39. Kd3 {[%clk 0:01:47]}  Rb2 {[%clk 0:01:15]} 40. Kc4 {[%clk 0:01:47]}  Rf2 {[%clk 0:01:03]} 41. Rxa5 {[%clk 0:01:47]}  Rxf3 {[%clk 0:01:03]} 42. Ra8 {[%clk 0:01:48]}  h5 {[%clk 0:01:01]} 43. a5 {[%clk 0:01:44]}  h4 {[%clk 0:01:02]} 44. Rh8 {[%clk 0:01:44]}  Kg5 {[%clk 0:01:00]} 45. a6 {[%clk 0:01:44]}  Rf6 {[%clk 0:00:55]} 46. a7 {[%clk 0:01:44]}  Ra6 {[%clk 0:00:54]} 47. a8=Q {[%clk 0:01:44]}  Rxa8 {[%clk 0:00:55]} 48. Rxa8 {[%clk 0:01:45]} 1-0


[Site "https://www.chess.com"]

[Event "Titled Tuesday Blitz March 08 Early 2022"]
[White "Leiva, Gianmarco"]
[Black "Zhigalko, Sergei"]
[WhiteFideId "3804399"]
[BlackFideId "13502956"]
[WhiteElo "2311"]
[BlackElo "2662"]
[Result "0-1"]
[Round "04"]
[TimeControl "180+1"]
[Date "2022.03.08"]
[WhiteClock "0:00:10"]
[BlackClock "0:00:04"]

1. e4 {[%clk 0:03:00]}  c5 {[%clk 0:03:00]} 2. Nf3 {[%clk 0:03:01]}  Nc6 {[%clk 0:03:00]} 3. Bb5 {[%clk 0:03:00]}  Nf6 {[%clk 0:03:00]} 4. Nc3 {[%clk 0:02:57]}  Qc7 {[%clk 0:03:00]} 5. O-O {[%clk 0:02:56]}  Nd4 {[%clk 0:03:01]} 6. Re1 {[%clk 0:02:55]}  a6 {[%clk 0:03:01]} 7. Bf1 {[%clk 0:02:50]}  Ng4 {[%clk 0:02:58]} 8. e5 {[%clk 0:02:50]}  h5 {[%clk 0:02:57]} 9. Nd5 {[%clk 0:02:41]}  Qc6 {[%clk 0:02:56]} 10. Nxd4 {[%clk 0:02:26]}  cxd4 {[%clk 0:02:46]} 11. c4 {[%clk 0:02:25]}  e6 {[%clk 0:02:33]} 12. Nf4 {[%clk 0:02:24]}  d6 {[%clk 0:02:33]} 13. exd6 {[%clk 0:02:18]}  Bxd6 {[%clk 0:02:01]} 14. d3 {[%clk 0:02:06]}  g5 {[%clk 0:01:56]} 15. Nh3 {[%clk 0:01:43]}  Bxh2+ {[%clk 0:01:17]} 16. Kh1 {[%clk 0:01:43]}  Bf4 {[%clk 0:01:16]} 17. Kg1 {[%clk 0:01:25]}  Bxc1 {[%clk 0:00:51]} 18. Rxc1 {[%clk 0:01:24]}  f6 {[%clk 0:00:52]} 19. g3 {[%clk 0:01:15]}  Bd7 {[%clk 0:00:44]} 20. Bg2 {[%clk 0:01:16]}  Qc7 {[%clk 0:00:44]} 21. c5 {[%clk 0:01:06]}  Kf7 {[%clk 0:00:43]} 22. Qb3 {[%clk 0:01:01]}  Rab8 {[%clk 0:00:36]} 23. Qc4 {[%clk 0:01:01]}  Rbd8 {[%clk 0:00:24]} 24. c6 {[%clk 0:00:57]}  bxc6 {[%clk 0:00:22]} 25. Qxd4 {[%clk 0:00:58]}  e5 {[%clk 0:00:18]} 26. Qa4 {[%clk 0:00:47]}  Qb6 {[%clk 0:00:17]} 27. Re2 {[%clk 0:00:44]}  h4 {[%clk 0:00:17]} 28. Bxc6 {[%clk 0:00:41]}  Be6 {[%clk 0:00:10]} 29. Bf3 {[%clk 0:00:39]}  Rd4 {[%clk 0:00:05]} 30. Qc6 {[%clk 0:00:39]}  Qxc6 {[%clk 0:00:04]} 31. Rxc6 {[%clk 0:00:39]}  hxg3 {[%clk 0:00:05]} 32. fxg3 {[%clk 0:00:40]}  Rxh3 {[%clk 0:00:05]} 33. Kg2 {[%clk 0:00:26]}  Rh2+ {[%clk 0:00:05]} 34. Kg1 {[%clk 0:00:26]}  Rxe2 {[%clk 0:00:06]} 35. Bxe2 {[%clk 0:00:27]}  Bxa2 {[%clk 0:00:04]} 36. Bf3 {[%clk 0:00:18]}  Be6 {[%clk 0:00:03]} 37. Rxa6 {[%clk 0:00:16]}  Rxd3 {[%clk 0:00:03]} 38. Ra7+ {[%clk 0:00:16]}  Rd7 {[%clk 0:00:02]} 39. Ra4 {[%clk 0:00:15]}  Rd4 {[%clk 0:00:02]} 40. Ra7+ {[%clk 0:00:15]}  Kf8 {[%clk 0:00:03]} 41. Ra6 {[%clk 0:00:14]}  Ke7 {[%clk 0:00:03]} 42. Rb6 {[%clk 0:00:11]}  Rd6 {[%clk 0:00:03]} 43. Rb7+ {[%clk 0:00:11]}  Rd7 {[%clk 0:00:03]} 44. Rb6 {[%clk 0:00:11]}  Ne3 {[%clk 0:00:03]} 45. Be4 {[%clk 0:00:11]}  Nd5 {[%clk 0:00:03]} 46. Rc6 {[%clk 0:00:11]}  Nb4 {[%clk 0:00:03]} 47. Rb6 {[%clk 0:00:11]}  Nd5 {[%clk 0:00:03]} 48. Rc6 {[%clk 0:00:11]}  f5 {[%clk 0:00:03]} 49. Bxd5 {[%clk 0:00:09]}  Rxd5 {[%clk 0:00:03]} 50. Rc7+ {[%clk 0:00:09]}  Kf6 {[%clk 0:00:03]} 51. Rc6 {[%clk 0:00:09]}  Rd1+ {[%clk 0:00:03]} 52. Kg2 {[%clk 0:00:09]}  Rd2+ {[%clk 0:00:04]} 53. Kh3 {[%clk 0:00:10]}  g4+ {[%clk 0:00:04]} 0-1


[Site "https://www.chess.com"]

[Event "Titled Tuesday Blitz March 08 Early 2022"]
[White "Leve, Nitai"]
[Black "Arabidze, Meri"]
[WhiteFideId "2006898"]
[BlackFideId "13604040"]
[WhiteElo "2144"]
[BlackElo "2335"]
[Result "1-0"]
[Round "04"]
[TimeControl "180+1"]
[Date "2022.03.09"]
[WhiteClock "0:00:09"]
[BlackClock "0:00:06"]

1. e4 {[%clk 0:02:43]}  d6 {[%clk 0:02:59]} 2. d4 {[%clk 0:02:43]}  g6 {[%clk 0:03:00]} 3. Nc3 {[%clk 0:02:43]}  Bg7 {[%clk 0:03:00]} 4. f4 {[%clk 0:02:43]}  Nf6 {[%clk 0:03:00]} 5. Nf3 {[%clk 0:02:40]}  c5 {[%clk 0:02:59]} 6. dxc5 {[%clk 0:02:40]}  dxc5 {[%clk 0:02:54]} 7. Qxd8+ {[%clk 0:02:38]}  Kxd8 {[%clk 0:02:55]} 8. Be3 {[%clk 0:02:38]}  Nbd7 {[%clk 0:02:50]} 9. O-O-O {[%clk 0:02:37]}  Kc7 {[%clk 0:02:42]} 10. e5 {[%clk 0:02:18]}  Ng4 {[%clk 0:02:42]} 11. Bg1 {[%clk 0:02:09]}  Bh6 {[%clk 0:02:26]} 12. h3 {[%clk 0:01:55]}  Ngxe5 {[%clk 0:02:24]} 13. Nd5+ {[%clk 0:01:41]}  Kb8 {[%clk 0:02:16]} 14. Nxe5 {[%clk 0:01:38]}  Nxe5 {[%clk 0:02:17]} 15. Bxc5 {[%clk 0:01:38]}  Nc6 {[%clk 0:02:11]} 16. g3 {[%clk 0:01:21]}  Re8 {[%clk 0:02:08]} 17. Bb5 {[%clk 0:01:19]}  Be6 {[%clk 0:01:55]} 18. Nxe7 {[%clk 0:00:59]}  Rxe7 {[%clk 0:01:32]} 19. Bxc6 {[%clk 0:00:59]}  Rc7 {[%clk 0:01:27]} 20. Rd8+ {[%clk 0:00:57]}  Bc8 {[%clk 0:01:25]} 21. Bd6 {[%clk 0:00:33]}  bxc6 {[%clk 0:01:24]} 22. Re1 {[%clk 0:00:27]}  Kb7 {[%clk 0:01:08]} 23. Bxc7 {[%clk 0:00:27]}  Kxc7 {[%clk 0:01:09]} 24. Rh8 {[%clk 0:00:27]}  Bg7 {[%clk 0:00:52]} 25. Rxh7 {[%clk 0:00:27]}  Bd4 {[%clk 0:00:53]} 26. Rxf7+ {[%clk 0:00:26]}  Kb6 {[%clk 0:00:53]} 27. c3 {[%clk 0:00:20]}  Bf2 {[%clk 0:00:53]} 28. Re8 {[%clk 0:00:19]}  Bxg3 {[%clk 0:00:53]} 29. Rff8 {[%clk 0:00:18]}  Kb7 {[%clk 0:00:52]} 30. b4 {[%clk 0:00:15]}  Bf2 {[%clk 0:00:30]} 31. a4 {[%clk 0:00:14]}  a6 {[%clk 0:00:30]} 32. Kb2 {[%clk 0:00:13]}  Bb6 {[%clk 0:00:27]} 33. c4 {[%clk 0:00:12]}  Bd4+ {[%clk 0:00:26]} 34. Kb3 {[%clk 0:00:12]}  Kc7 {[%clk 0:00:21]} 35. Rf7+ {[%clk 0:00:10]}  Kd6 {[%clk 0:00:20]} 36. c5+ {[%clk 0:00:10]}  Kd5 {[%clk 0:00:21]} 37. Rff8 {[%clk 0:00:10]}  Bxh3 {[%clk 0:00:08]} 38. Rxa8 {[%clk 0:00:09]}  Bf1 {[%clk 0:00:08]} 39. Rad8+ {[%clk 0:00:09]}  Ke4 {[%clk 0:00:08]} 40. Rfe8+ {[%clk 0:00:09]}  Kd3 {[%clk 0:00:09]} 41. Re1 {[%clk 0:00:09]}  Bg2 {[%clk 0:00:08]} 42. Rd1+ {[%clk 0:00:09]}  Ke2 {[%clk 0:00:06]} 43. R1xd4 {[%clk 0:00:09]} 1-0


[Site "https://www.chess.com"]

[Event "Titled Tuesday Blitz March 08 Early 2022"]
[White "Levin, Anthony"]
[Black "Coelho, Ramyres Santana"]
[WhiteFideId "30940680"]
[BlackFideId "2120690"]
[WhiteElo "1862"]
[BlackElo "1888"]
[Result "1/2-1/2"]
[Round "04"]
[TimeControl "180+1"]
[Date "2022.03.09"]
[WhiteClock "0:01:42"]
[BlackClock "0:02:17"]

1. d4 {[%clk 0:02:49]}  Nf6 {[%clk 0:02:59]} 2. c4 {[%clk 0:02:49]}  g6 {[%clk 0:02:59]} 3. g3 {[%clk 0:02:49]}  Bg7 {[%clk 0:02:57]} 4. Bg2 {[%clk 0:02:48]}  O-O {[%clk 0:02:58]} 5. e4 {[%clk 0:02:48]}  d6 {[%clk 0:02:59]} 6. Nc3 {[%clk 0:02:47]}  e5 {[%clk 0:02:59]} 7. Nf3 {[%clk 0:02:45]}  Nc6 {[%clk 0:02:59]} 8. dxe5 {[%clk 0:02:39]}  Nxe5 {[%clk 0:02:55]} 9. Nxe5 {[%clk 0:02:38]}  dxe5 {[%clk 0:02:56]} 10. Bg5 {[%clk 0:02:38]}  Qxd1+ {[%clk 0:02:56]} 11. Rxd1 {[%clk 0:02:39]}  c6 {[%clk 0:02:54]} 12. h3 {[%clk 0:02:37]}  h6 {[%clk 0:02:54]} 13. Be3 {[%clk 0:02:37]}  Be6 {[%clk 0:02:54]} 14. b3 {[%clk 0:02:36]}  Rfd8 {[%clk 0:02:54]} 15. O-O {[%clk 0:02:28]}  Kf8 {[%clk 0:02:52]} 16. Na4 {[%clk 0:02:27]}  b6 {[%clk 0:02:50]} 17. f3 {[%clk 0:01:57]}  Ke7 {[%clk 0:02:18]} 18. Nc3 {[%clk 0:01:43]}  Rxd1 {[%clk 0:02:17]} 19. Rxd1 {[%clk 0:01:43]}  Rd8 {[%clk 0:02:18]} 20. Rxd8 {[%clk 0:01:42]}  Kxd8 {[%clk 0:02:19]} 21. Kf2 {[%clk 0:01:42]}  Nd7 {[%clk 0:02:17]} 1/2-1/2


[Site "https://www.chess.com"]